fUST/lending_fUST_20240111
["ID","MTS","AMOUNT","RATE_DAILY","PERIOD"]
[311124989,1704922244740,-500.0,0.00031232,2]
[311124990,1704922244750,-500.0,0.00031232,2]
[311124991,1704922244759,-500.0,0.00031232,2]
[311124992,1704922244771,-500.0,0.00031232,2]
[311124993,1704922244780,-500.0,0.00031232,2]
[311124994,1704922244790,-500.0,0.00031232,2]
[311124995,1704922244799,-1150.33,0.00031232,2]
[311124996,1704922244809,-500.0,0.00031232,2]
[311124997,1704922244819,-840.17,0.00031232,2]
[311124998,1704922244828,-500.0,0.00031232,2]
[311124999,1704922244837,-500.0,0.00031232,2]
[311125000,1704922244846,-1324.87,0.00031232,2]
[311125001,1704922244855,-500.0,0.00031232,2]
[311125002,1704922244865,-1150.57,0.00031232,2]
[311125003,1704922244874,-697.69,0.00031232,2]
[311125004,1704922244883,-1250.61,0.00031232,2]
[311125005,1704922244896,-3336.75,0.00031232,2]
[311125006,1704922244905,-501.47,0.00031232,2]
[311125007,1704922244914,-500.0,0.00031232,2]
[311125008,1704922244923,-683.69,0.00031232,2]
[311125009,1704922244933,-500.0,0.00031232,2]
[311125010,1704922244942,-500.0,0.00031232,2]
[311125011,1704922244951,-500.0,0.00031232,2]
[311125012,1704922244961,-500.0,0.00031232,2]
[311125013,1704922244970,-500.0,0.00031232,2]
[311125014,1704922244980,-500.0,0.00031232,2]
[311125015,1704922244989,-604.63,0.00031232,2]
[311125016,1704922244999,-500.0,0.00031232,2]
[311125017,1704922245008,-500.0,0.00031232,2]
[311125018,1704922245017,-155.44388085,0.00031296,7]
[311125019,1704922245026,-155.44388086,0.00031301,7]
[311125020,1704922245035,-152.35064137,0.00031391,7]
[311125021,1704922245045,-150.61472397,0.00031396,7]
[311125022,1704922245055,-500.0,0.00031506,2]
[311125023,1704922245066,-500.0,0.00031506,2]
[311125024,1704922245077,-500.0,0.00031506,2]
[311125025,1704922245086,-590.32,0.00031506,2]
[311125026,1704922245095,-239.75117528,0.00031506,2]
[311125027,1704922245105,-500.0,0.00031506,2]
[311125028,1704922245115,-500.0,0.00031506,2]
[311125029,1704922245124,-500.0,0.00031506,2]
[311125030,1704922245134,-475.28,0.00031506,2]
[311125031,1704922245150,-500.0,0.00031506,2]
[311125032,1704922245159,-500.0,0.00031506,2]
[311125033,1704922245168,-500.0,0.00031506,2]
[311125034,1704922245179,-500.0,0.00031506,2]
[311125035,1704922245189,-1150.33,0.00031506,2]
[311125036,1704922245199,-500.0,0.00031506,2]
[311125037,1704922245208,-840.17,0.00031506,2]
[311125038,1704922245218,-500.0,0.00031506,2]
[311125039,1704922245227,-500.0,0.00031506,2]
[311125040,1704922245237,-1324.87,0.00031506,2]
[311125041,1704922245248,-500.0,0.00031506,2]
[311125042,1704922245257,-1150.57,0.00031506,2]
[311125043,1704922245267,-697.69,0.00031506,2]
[311125044,1704922245276,-1250.61,0.00031506,2]
[311125045,1704922245286,-3336.75,0.00031506,2]
[311125046,1704922245296,-501.47,0.00031506,2]
[311125047,1704922245305,-500.0,0.00031506,2]
[311125048,1704922245315,-683.69,0.00031506,2]
[311125049,1704922245325,-500.0,0.00031506,2]
[311125050,1704922245335,-500.0,0.00031506,2]
[311125051,1704922245344,-500.0,0.00031506,2]
[311125052,1704922245355,-500.0,0.00031506,2]
[311125053,1704922245364,-500.0,0.00031506,2]
[311125054,1704922245374,-500.0,0.00031506,2]
[311125055,1704922245383,-604.63,0.00031506,2]
[311125056,1704922245396,-500.0,0.00031506,2]
[311125057,1704922245406,-180.60979811,0.00031506,2]
[311125058,1704922245415,-152.35064137,0.00031531,7]
[311125059,1704922245424,-150.360848,0.00031577,2]
[311125060,1704922245434,-152.788532,0.00031577,2]
[311125061,1704922245443,-509.6319014,0.00031699,4]
[311125062,1704922245453,-398.12730108,0.00031699,4]
[311125063,1704922245462,-226.01091952,0.00031699,4]
[311125064,1704922245472,-500.0,0.00031699,4]
[311125065,1704922245482,-500.0,0.00031699,4]
[311125066,1704922245492,-423.91635654,0.00031699,4]
[311125067,1704922245502,-500.0,0.00031699,4]
[311125068,1704922245511,-183.03599207,0.00031699,4]
[311125069,1704922245521,-500.0,0.00031699,4]
[311125070,1704922245531,-3406.52550931,0.000317,2]
[311125071,1704922245541,-150.61472397,0.00031719,7]
[311125072,1704922245551,-500.0,0.0003178,2]
[311125073,1704922245560,-500.0,0.0003178,2]
[311125074,1704922245569,-500.0,0.0003178,2]
[311125075,1704922245579,-590.32,0.0003178,2]
[311125076,1704922245589,-500.0,0.0003178,2]
[311125077,1704922245598,-500.0,0.0003178,2]
[311125078,1704922245609,-366.75,0.0003178,2]
[311125079,1704922245619,-500.0,0.0003178,2]
[311125080,1704922245629,-500.0,0.0003178,2]
[311125081,1704922245641,-500.0,0.0003178,2]
[311125082,1704922245651,-500.0,0.0003178,2]
[311125083,1704922245660,-1150.33,0.0003178,2]
[311125084,1704922245670,-500.0,0.0003178,2]
[311125085,1704922245679,-840.17,0.0003178,2]
[311125086,1704922245688,-500.0,0.0003178,2]
[311125087,1704922245698,-500.0,0.0003178,2]
[311125088,1704922245708,-1324.87,0.0003178,2]
[311125089,1704922245718,-500.0,0.0003178,2]
[311125090,1704922245727,-1150.57,0.0003178,2]
[311125091,1704922245737,-697.69,0.0003178,2]
[311125092,1704922245746,-1250.61,0.0003178,2]
[311125093,1704922245755,-3336.75,0.0003178,2]
[311125094,1704922245765,-501.47,0.0003178,2]
[311125095,1704922245785,-500.0,0.0003178,2]
[311125096,1704922245799,-683.69,0.0003178,2]
[311125097,1704922245808,-500.0,0.0003178,2]
[311125098,1704922245818,-357.24,0.0003178,2]
[311125099,1704922245828,-500.0,0.0003178,2]
[311125100,1704922245838,-500.0,0.0003178,2]
[311125101,1704922245848,-500.0,0.0003178,2]
[311125102,1704922245857,-576.34,0.0003178,2]
[311125103,1704922245866,-604.63,0.0003178,2]
[311125104,1704922245876,-500.0,0.0003178,2]
[311125105,1704922245886,-152.35064137,0.00031803,7]
[311125106,1704922245899,-2134.03260025,0.00032,4]
[311125107,1704922245909,-1373.66,0.00032,2]
[311125108,1704922245918,-5188.65,0.00032,2]
[311125109,1704922245927,-620.0003842,0.0003201,2]
[311125110,1704922245937,-500.0,0.00032054,2]
[311125111,1704922245947,-500.0,0.00032054,2]
[311125112,1704922245956,-500.0,0.00032054,2]
[311125113,1704922245966,-590.32,0.00032054,2]
[311125114,1704922245975,-551.14435428,0.00032054,2]
[311125115,1704922245984,-500.0,0.00032054,2]
[311125116,1704922245994,-500.0,0.00032054,2]
[311125117,1704922246003,-500.0,0.00032054,2]
[311125118,1704922246013,-500.0,0.00032054,2]
[311125119,1704922246022,-348.08,0.00032054,2]
[311125120,1704922246032,-1150.33,0.00032054,2]
[311125121,1704922246042,-500.0,0.00032054,2]
[311125122,1704922246051,-840.17,0.00032054,2]
[311125123,1704922246060,-556.65701334,0.00032054,2]
[311125124,1704922246070,-500.0,0.00032054,2]
[311125125,1704922246079,-1324.87,0.00032054,2]
[311125126,1704922246090,-500.0,0.00032054,2]
[311125127,1704922246100,-1150.57,0.00032054,2]
[311125128,1704922246110,-697.69,0.00032054,2]
[311125129,1704922246120,-1250.61,0.00032054,2]
[311125130,1704922246130,-3336.75,0.00032054,2]
[311125131,1704922246144,-501.47,0.00032054,2]
[311125132,1704922246155,-500.0,0.00032054,2]
[311125133,1704922246165,-683.69,0.00032054,2]
[311125134,1704922246269,-500.0,0.00032054,2]
[311125135,1704922246279,-500.0,0.00032054,2]
[311125136,1704922246289,-500.0,0.00032054,2]
[311125137,1704922246298,-469.15609043,0.00032054,2]
[311125138,1704922246307,-604.63,0.00032054,2]
[311125139,1704922246316,-500.0,0.00032054,2]
[311125140,1704922246325,-326.44035945,0.00032328,2]
[311125141,1704922246334,-624.52,0.00032328,2]
[311125142,1704922246343,-500.0,0.00032328,2]
[311125143,1704922246353,-590.32,0.00032328,2]
[311125144,1704922246362,-594.41839876,0.00032328,2]
[311125145,1704922246371,-500.0,0.00032328,2]
[311125146,1704922246379,-500.0,0.00032328,2]
[311125147,1704922246392,-500.0,0.00032328,2]
[311125148,1704922246401,-1150.33,0.00032328,2]
[311125149,1704922246411,-500.0,0.00032328,2]
[311125150,1704922246420,-840.17,0.00032328,2]
[311125151,1704922246430,-500.0,0.00032328,2]
[311125152,1704922246439,-1324.87,0.00032328,2]
[311125153,1704922246448,-290.65547158,0.00032328,2]
[311125154,1704922246457,-1150.57,0.00032328,2]
[311125155,1704922246466,-697.69,0.00032328,2]
[311125156,1704922246475,-1250.61,0.00032328,2]
[311125157,1704922246485,-3336.75,0.00032328,2]
[311125158,1704922246494,-501.47,0.00032328,2]
[311125159,1704922246503,-500.0,0.00032328,2]
[311125160,1704922246512,-683.69,0.00032328,2]
[311125161,1704922246521,-500.0,0.00032328,2]
[311125162,1704922246530,-500.0,0.00032328,2]
[311125163,1704922246539,-500.0,0.00032328,2]
[311125164,1704922246548,-604.63,0.00032328,2]
[311125165,1704922246558,-500.0,0.00032328,2]
[311125166,1704922246567,-151.0,0.00032443,2]
[311125167,1704922246577,-2181.79149672,0.00032458,2]
[311125168,1704922246586,-500.0,0.000325,2]
[311125169,1704922246594,-398306.86158589,0.000325,20]
[311125170,1704922246667,-294.545,0.000325,20]
[311125171,1704922246679,-15277.7568198,0.000325,20]
[311125172,1704922246755,-554.51,0.00030329,2]
[311125173,1704922246765,-7101.37,0.00030684,2]
[311125174,1704922246775,-2155.74501827,0.00030958,2]
[311125175,1704922246786,-4945.62498173,0.00030958,2]
[311125176,1704922246795,-2922.74079347,0.00031232,2]
[311125177,1704922246829,-8542.31,0.00027387,3]
[311125178,1704922246838,-409.14500886,0.00030136,2]
[311125179,1704922246847,-81.0682737,0.00031232,2]
[311125180,1704922246858,-4097.56093283,0.00031232,2]
[311125181,1704922246866,-5319.93067327,0.00031506,2]
[311125182,1704922246959,-1781.43932673,0.00031506,2]
[311125183,1704922246969,-7101.37,0.0003178,2]
[311125184,1704922246978,-783.09229124,0.00032054,2]
[311125185,1704922246991,-6318.27770876,0.00032054,2]
[311125186,1704922247001,-7101.37,0.00032328,2]
[311125187,1704922247011,-6824.84996355,0.000325,20]
[311125188,1704922247023,-41336.14022174,0.000325,20]
[311125189,1704922247035,-40124.25683997,0.000325,20]
[311125190,1704922247058,-1629.30960891,0.000325,20]
[311125393,1704922250623,-676.96253794,0.0002,2]
[311125395,1704922250634,-246.05359663,0.00027385,2]
[311125397,1704922250650,-4957.68386543,0.00027386,2]
[311125418,1704922251057,-285.7548216,0.00027385,2]
[311125419,1704922251066,-4754.8451784,0.00027386,2]
[311125420,1704922251078,-5074.12465494,0.00027386,2]
[311125421,1704922251088,-1737.24988191,0.00027386,2]
[311125423,1704922251097,-256.23986179,0.00027386,2]
[311125425,1704922251106,-154.9690062,0.00029093,4]
[311125427,1704922251115,-629.26,0.00030136,2]
[311125429,1704922251125,-500.0,0.00030136,2]
[311125431,1704922251134,-500.0,0.0003041,2]
[311125433,1704922251147,-500.0,0.00030684,2]
[311125434,1704922251157,-500.0,0.00030958,2]
[311125436,1704922251167,-500.0,0.00031232,2]
[311125438,1704922251177,-500.0,0.00031506,2]
[311125440,1704922251187,-500.0,0.0003178,2]
[311125442,1704922251197,-500.0,0.00032054,2]
[311125444,1704922251207,-351.71464436,0.00032327,4]
[311125445,1704922251217,-528.44906301,0.00032327,2]
[311125446,1704922251227,-500.0,0.00032328,2]
[311125447,1704922251236,-859.94316424,0.00032499,4]
[311125448,1704922251245,-220.68058373,0.00032499,4]
[311125449,1704922251255,-311.35324543,0.00032499,4]
[311125450,1704922251264,-52108.72100344,0.000325,20]
[311125451,1704922252323,187.29551158,0.00016232,2]
[311125452,1704922255572,7407.29823829,0.00016232,2]
[311125456,1704923011986,534.09975459,0.00016232,2]
[311125457,1704923027683,2472.41368856,0.00016232,2]
[311125458,1704923113332,1466.07383029,0.00014127,2]
[311125520,1704923338028,20381.09057661,0.00016756,2]
[311125605,1704923434439,-253.55669293,0.00016747,2]
[311125607,1704923434449,-6597.97126307,0.00016747,2]
[311125669,1704923438049,-1575.9466697,0.00016746,2]
[311125671,1704923438060,-17214.34910802,0.00016747,2]
[311125673,1704923438069,-154.9690062,0.00016747,2]
[311125675,1704923438078,-7943.71182072,0.00016747,2]
[311125676,1704923438087,-15880.72613326,0.00016748,2]
[311125678,1704923438097,-154.9690062,0.00016748,2]
[311125680,1704923438105,-520.97192037,0.00016749,2]
[311125682,1704923438115,-285.7548216,0.00016749,2]
[311125684,1704923438124,-1989.51321951,0.00016749,2]
[311125686,1704923438133,-451.74832768,0.00016749,2]
[311125687,1704923438142,-1067.08288417,0.00016749,2]
[311125689,1704923438151,-154.9690062,0.0001675,2]
[311125691,1704923438160,-154.9690062,0.0001675,3]
[311125693,1704923438169,-2927.32783457,0.0001675,2]
[311125695,1704923438177,-469.64064105,0.00016751,2]
[311125697,1704923438187,-19828.39990193,0.00016751,2]
[311125698,1704923438195,-4541.487898,0.00016754,2]
[311125700,1704923438204,-4518.90942339,0.00016756,2]
[311125702,1704923438213,-872.56977946,0.00017773,2]
[311125704,1704923438222,-4226.45128796,0.00017774,2]
[311125706,1704923438231,-2475.7657507,0.00017775,2]
[311125708,1704923438240,-246.05359663,0.00017897,2]
[311125709,1704923438249,-172.88632287,0.0001836,2]
[311125711,1704923438258,-10500.0358078,0.00018459,2]
[311125713,1704923438268,-3478.12894861,0.0001846,2]
[311125715,1704923438277,-155.46392837,0.00018835,2]
[311125717,1704923438286,-198.82408315,0.00018836,2]
[311125718,1704923438295,-947.43868379,0.00018836,2]
[311125720,1704923438305,-28433.29290075,0.00018837,2]
[311125722,1704923438315,-1628.99771276,0.00018842,2]
[311125724,1704923438326,-167.600318,0.00018844,2]
[311125726,1704923438335,-1578.65511595,0.00019,2]
[311125728,1704923438344,-4302.12632981,0.00019072,2]
[311125729,1704923438353,-161.431354,0.00019178,2]
[311125731,1704923438362,-174.331822,0.00019178,2]
[311125733,1704923438371,-1112.08388858,0.000195,2]
[311125735,1704923438381,-193.5424782,0.000199,2]
[311125737,1704923438390,-4151.96942675,0.000199,2]
[311125739,1704923438399,-374.40201866,0.000199,2]
[311125740,1704923438408,-504.37865892,0.000199,2]
[311125742,1704923438417,-300.0,0.0002,2]
[311125744,1704923438426,-156.28912503,0.0002,2]
[311125746,1704923438435,-2079.63666476,0.0002,2]
[311125748,1704923438444,-200.0,0.0002,2]
[311125750,1704923438453,-213.6448629,0.0002,2]
[311125751,1704923438462,-676.96253794,0.0002,2]
[311125753,1704923438471,-236.79527182,0.0002,2]
[311125755,1704923438480,-853.57612089,0.0002,2]
[311125757,1704923438489,-1195.09669838,0.0002,2]
[311125759,1704923438498,-270734.30120863,0.0002,2]
[311125761,1704923438507,-266.19065175,0.0002,2]
[311125762,1704923438516,-154.9690062,0.0002,2]
[311125764,1704923438525,-1821.85168105,0.00021,2]
[311125766,1704923438535,-326.73090334,0.00021,2]
[311125768,1704923438544,-166.666666,0.00021918,2]
[311125770,1704923438553,-292.83058016,0.00022,4]
[311125772,1704923438564,-156.86767994,0.00022,2]
[311125773,1704923438573,-4917.8600325,0.00022,2]
[311125775,1704923438582,-3931.75997852,0.00022,2]
[311125777,1704923438591,-166.666666,0.00022431,2]
[311125778,1704923438601,-758.46828751,0.00022478,5]
[311125780,1704923438611,-976.0012481,0.00022478,2]
[311125781,1704923438621,-154.9690062,0.000225,2]
[311125782,1704923438631,-504.37865891,0.00022936,2]
[311125784,1704923438641,-166.666666,0.00022944,2]
[311125785,1704923438650,-9920.80434626,0.00023,2]
[311125787,1704923438659,-2093.08732709,0.00023,2]
[311125789,1704923438669,-166.666666,0.00023456,2]
[311125790,1704923438678,-166.666666,0.00023969,2]
[311125792,1704923438687,-2293.16748545,0.00024,2]
[311125794,1704923438696,-614.01289661,0.00024,2]
[311125796,1704923438705,-1633.50864164,0.00024226,5]
[311125797,1704923438714,-166.666666,0.00024482,2]
[311125798,1704923438724,-209.04863276,0.00024965,2]
[311125800,1704923438733,-166.3781127,0.00024965,2]
[311125802,1704923438742,-268.79019319,0.00024966,2]
[311125804,1704923438751,-489.42776446,0.00024966,2]
[311125806,1704923438760,-282.92833682,0.00024966,2]
[311125807,1704923438769,-560.33964085,0.00024974,2]
[311125809,1704923438779,-1030.35167796,0.00024974,2]
[311125811,1704923438789,-164.84804974,0.00024975,2]
[311125812,1704923438798,-553.96762656,0.00024975,2]
[311125813,1704923438808,-12391.42990253,0.00024975,2]
[311125814,1704923438819,-309.76768121,0.00024975,2]
[311125815,1704923438828,-377.46790912,0.00024976,2]
[311125816,1704923438838,-624.29446752,0.00024976,2]
[311125817,1704923438847,-23003.30966026,0.00024976,2]
[311125818,1704923438856,-4324.76711743,0.00024976,2]
[311125819,1704923438866,-928.53054493,0.00024977,2]
[311125820,1704923438876,-358.94226213,0.00024977,2]
[311125821,1704923438885,-271.96235488,0.00024997,2]
[311125822,1704923438895,-2070.35788054,0.00024997,2]
[311125823,1704923439029,-369.57346955,0.00024997,2]
[311125824,1704923439039,-860.80550823,0.00024997,2]
[311125825,1704923439049,-964.55150019,0.00024999,2]
[311125826,1704923439063,-763.40324942,0.00025,2]
[311125827,1704923439073,-4711.08145103,0.00025,2]
[311125828,1704923439082,-3000.0,0.00025,2]
[311125829,1704923439092,-504.37865891,0.00025972,2]
[311125830,1704923439101,-525.91402641,0.00026,2]
[311125831,1704923439110,-881.94009009,0.00026282,2]
[311125832,1704923439119,-229.46755817,0.00026958,2]
[311125833,1704923439128,-3313.2630203,0.00027,2]
[311125834,1704923439137,-733.25771754,0.00027,2]
[311125835,1704923439147,-309.79865023,0.00027,2]
[311125836,1704923439155,-161.4313594,0.00027233,2]
[311125837,1704923439165,-410.48330096,0.00027298,2]
[311125838,1704923439174,-9098.22062588,0.000273,4]
[311125839,1704923439183,-155.71636712,0.00027384,2]
[311125840,1704923439192,-500.0,0.00027397,2]
[311125841,1704923439201,-14216.77,0.00027397,3]
[311125842,1704923439210,-11847.31,0.00027397,3]
[311125843,1704923439219,-261.021,0.000274,2]
[311125844,1704923439229,-500.0,0.00027534,2]
[311125845,1704923439239,-500.0,0.00027671,2]
[311125846,1704923439248,-687.59711705,0.000277,2]
[311125847,1704923439258,-500.0,0.00027808,2]
[311125848,1704923439268,-500.0,0.00027945,2]
[311125849,1704923439277,-305.01426273,0.00028,2]
[311125850,1704923439286,-500.0,0.00028082,2]
[311125851,1704923439297,-500.0,0.00028219,2]
[311125852,1704923439314,-500.0,0.00028356,2]
[311125853,1704923439323,-637.30923883,0.00028493,2]
[311125854,1704923439332,-3077.25342427,0.00028565,2]
[311125855,1704923439343,-9651.14036935,0.00028601,3]
[311125856,1704923439352,-1982.97164167,0.00029,2]
[311125857,1704923439361,-504.37865891,0.00029008,2]
[311125858,1704923439370,-152.92410639,0.00029999,2]
[311125859,1704923439380,-494.02202573,0.00029999,2]
[311125860,1704923439389,-485.18610106,0.00029999,2]
[311125861,1704923439399,-500.0,0.00029999,2]
[311125862,1704923439408,-500.0,0.00029999,2]
[311125863,1704923439418,-610.42701804,0.00029999,2]
[311125864,1704923439427,-500.0,0.00029999,2]
[311125865,1704923439437,-500.0,0.00029999,2]
[311125866,1704923439446,-500.0,0.00029999,2]
[311125867,1704923439456,-495.62487963,0.00029999,2]
[311125868,1704923439465,-500.0,0.00029999,2]
[311125869,1704923439474,-500.0,0.00029999,2]
[311125870,1704923439484,-500.0,0.00029999,2]
[311125871,1704923439493,-500.0,0.00029999,2]
[311125872,1704923439503,-500.0,0.00029999,2]
[311125873,1704923439513,-500.0,0.00029999,2]
[311125874,1704923439522,-500.0,0.00029999,2]
[311125875,1704923439531,-500.0,0.00029999,2]
[311125876,1704923439540,-385.83025232,0.00029999,2]
[311125877,1704923439550,-165.56576911,0.0003,7]
[311125878,1704923439562,-309.75221062,0.0003,2]
[311125879,1704923439571,-6973.85683356,0.0003,4]
[311125880,1704923439580,-10528.01709463,0.0003,4]
[311125881,1704923439590,-279.76130408,0.0003,4]
[311125882,1704923439599,-639.65046808,0.0003,4]
[311125883,1704923439610,-686.6335406,0.0003,4]
[311125884,1704923439620,-463.38099934,0.0003,4]
[311125885,1704923439630,-188.0,0.0003,2]
[311125886,1704923439639,-150.360848,0.00030073,2]
[311125887,1704923439648,-152.788534,0.00030073,2]
[311125888,1704923439657,-150.360848,0.00030073,2]
[311125889,1704923439666,-152.788532,0.00030073,2]
[311125890,1704923439676,-150.360848,0.00030073,2]
[311125891,1704923439686,-152.788532,0.00030073,2]
[311125892,1704923439695,-550.98543534,0.00030136,2]
[311125893,1704923439705,-500.0,0.00030136,2]
[311125894,1704923439714,-500.0,0.00030136,2]
[311125895,1704923439723,-500.0,0.00030136,2]
[311125896,1704923439733,-500.0,0.00030136,2]
[311125897,1704923439743,-500.0,0.00030136,2]
[311125898,1704923439752,-537.15148548,0.00030136,2]
[311125899,1704923439761,-500.0,0.00030136,2]
[311125900,1704923439770,-480.46908474,0.00030136,2]
[311125901,1704923439784,-19.53091526,0.00030136,2]
[311125902,1704923439794,-573.7853344,0.00030136,2]
[311125903,1704923439803,-500.0,0.00030136,2]
[311125904,1704923439815,-302.46232388,0.00030136,2]
[311125905,1704923439825,-804.71,0.00030136,2]
[311125906,1704923439834,-500.0,0.00030136,2]
[311125907,1704923439843,-1194.5,0.00030136,2]
[311125908,1704923439853,-125.83000549,0.00030136,2]
[311125909,1704923439865,-492.02999451,0.00030136,2]
[311125910,1704923439874,-500.0,0.00030136,2]
[311125911,1704923439883,-500.0,0.00030136,2]
[311125912,1704923439892,-500.0,0.00030136,2]
[311125913,1704923439902,-500.0,0.00030136,2]
[311125914,1704923439911,-500.0,0.00030136,2]
[311125915,1704923439921,-500.0,0.00030136,2]
[311125916,1704923439930,-500.0,0.00030136,2]
[311125917,1704923439939,-500.0,0.00030136,2]
[311125918,1704923439949,-500.0,0.00030136,2]
[311125919,1704923439959,-500.0,0.00030136,2]
[311125920,1704923439968,-500.0,0.00030136,2]
[311125921,1704923439977,-500.0,0.00030136,2]
[311125922,1704923439986,-500.0,0.00030136,2]
[311125924,1704923439995,-501.60366891,0.00030136,2]
[311125926,1704923440004,-161.74440105,0.00030136,2]
[311125927,1704923440013,-285.49862823,0.00030136,2]
[311125928,1704923440022,-500.0,0.00030136,2]
[311125929,1704923440031,-500.0,0.00030136,2]
[311125930,1704923440040,-500.0,0.00030136,2]
[311125931,1704923440052,-500.0,0.00030136,2]
[311125932,1704923440063,-500.0,0.00030136,2]
[311125933,1704923440073,-500.0,0.00030136,2]
[311125934,1704923440082,-500.0,0.00030136,2]
[311125935,1704923440091,-500.0,0.00030136,2]
[311125936,1704923440100,-500.0,0.00030136,2]
[311125937,1704923440109,-500.0,0.00030136,2]
[311125938,1704923440118,-500.0,0.00030136,2]
[311125939,1704923440127,-500.0,0.00030136,2]
[311125940,1704923440136,-500.0,0.00030136,2]
[311125941,1704923440146,-500.0,0.00030136,2]
[311125942,1704923440155,-500.0,0.00030136,2]
[311125943,1704923440165,-500.0,0.00030136,2]
[311125944,1704923440174,-500.0,0.00030136,2]
[311125945,1704923440183,-505.78714595,0.00030136,2]
[311125946,1704923440192,-500.0,0.00030136,2]
[311125947,1704923440202,-500.0,0.00030136,2]
[311125948,1704923440212,-500.0,0.00030136,2]
[311125950,1704923440221,-500.0,0.00030136,2]
[311125952,1704923440230,-500.0,0.00030136,2]
[311125954,1704923440239,-500.0,0.00030136,2]
[311125955,1704923440248,-500.0,0.00030136,2]
[311125956,1704923440257,-500.0,0.00030136,2]
[311125957,1704923440266,-500.0,0.00030136,2]
[311125958,1704923440276,-500.0,0.00030136,2]
[311125959,1704923440285,-500.0,0.00030136,2]
[311125960,1704923440294,-500.0,0.00030136,2]
[311125962,1704923440309,-500.0,0.00030136,2]
[311125963,1704923440318,-285.5345867,0.00030136,2]
[311125965,1704923440327,-500.0,0.00030136,2]
[311125966,1704923440335,-499.95383034,0.00030136,2]
[311125967,1704923440344,-500.0,0.00030136,2]
[311125968,1704923440354,-500.0,0.00030136,2]
[311125969,1704923440364,-500.0,0.00030136,2]
[311125970,1704923440373,-500.0,0.00030136,2]
[311125971,1704923440382,-500.0,0.00030136,2]
[311125973,1704923440392,-500.0,0.00030136,2]
[311125975,1704923440401,-501.12318678,0.00030136,2]
[311125976,1704923440411,-7256.79,0.00030136,2]
[311125977,1704923440420,-500.0,0.00030136,2]
[311125978,1704923440429,-200.0,0.00030136,2]
[311125979,1704923440438,-500.0,0.00030136,2]
[311125980,1704923440447,-502.5845982,0.00030136,2]
[311125981,1704923440456,-500.0,0.00030136,2]
[311125982,1704923440465,-508.5740827,0.00030136,2]
[311125983,1704923440475,-500.0,0.00030136,2]
[311125984,1704923440484,-500.0,0.00030136,2]
[311125985,1704923440493,-631.82750431,0.00030136,2]
[311125986,1704923440502,-500.0,0.00030136,2]
[311125987,1704923440511,-1205.0,0.00030136,2]
[311125988,1704923440521,-500.0,0.00030136,2]
[311125989,1704923440530,-500.0,0.00030136,2]
[311125990,1704923440540,-500.0,0.00030136,2]
[311125991,1704923440549,-500.0,0.00030136,2]
[311125992,1704923440560,-500.0,0.00030136,2]
[311125993,1704923440570,-282.4939913,0.00030136,2]
[311125994,1704923440580,-1596.42,0.00030136,2]
[311125995,1704923440591,-500.0,0.00030136,2]
[311125996,1704923440601,-500.0,0.00030136,5]
[311125997,1704923440610,-501.94728319,0.00030136,2]
[311125998,1704923440619,-500.0,0.00030136,2]
[311125999,1704923440628,-716.33,0.00030136,2]
[311126000,1704923440637,-497.22417374,0.00030136,2]
[311126001,1704923440646,-500.0,0.00030136,2]
[311126002,1704923440655,-407.09468989,0.00030136,2]
[311126008,1704923441137,-2029.97306616,0.00016746,2]
[311126009,1704923441146,-166.666666,0.00021918,2]